fUSD/lending_fUSD_20251217
["ID","MTS","AMOUNT","RATE_DAILY","PERIOD"]
[398927193,1766001039288,-150.0,0.00015434,2]
[398927195,1766001039297,-150.0,0.00015435,2]
[398927197,1766001039306,-150.0,0.00015439,2]
[398927199,1766001039316,-150.0,0.00015444,2]
[398927200,1766001039325,-150.0,0.00015446,2]
[398927203,1766001039335,-150.0,0.00015453,2]
[398927205,1766001039344,-150.0,0.00015458,2]
[398927207,1766001039354,-13692.05,0.0001546,2]
[398927209,1766001039363,-150.0,0.00015463,2]
[398927211,1766001039375,-150.0,0.00015471,2]
[398927213,1766001039384,-150.0,0.00015472,2]
[398927215,1766001039393,-500.0,0.00015473,2]
[398927217,1766001039402,-500.0,0.00015473,2]
[398927219,1766001039411,-500.0,0.00015473,2]
[398927220,1766001039422,-500.0,0.00015473,2]
[398927221,1766001039432,-500.0,0.00015473,2]
[398927222,1766001039442,-500.0,0.00015473,2]
[398927223,1766001039451,-500.0,0.00015473,2]
[398927224,1766001039460,-270.30071685,0.00015473,2]
[398927225,1766001039470,-500.0,0.00015473,2]
[398927226,1766001039479,-500.0,0.00015473,2]
[398927227,1766001039488,-500.0,0.00015473,2]
[398927228,1766001039498,-500.0,0.00015473,2]
[398927229,1766001039507,-500.0,0.00015473,2]
[398927231,1766001039516,-500.0,0.00015473,2]
[398927233,1766001039526,-530.10800238,0.00015473,2]
[398927235,1766001039535,-500.0,0.00015473,2]
[398927237,1766001039545,-500.0,0.00015473,2]
[398927239,1766001039556,-500.0,0.00015473,2]
[398927241,1766001039566,-150.0,0.00015474,2]
[398927243,1766001039575,-150.0,0.00015476,2]
[398927245,1766001039584,-500.0,0.00015481,2]
[398927247,1766001039593,-150.0,0.00015482,2]
[398927249,1766001039603,-150.0,0.00015485,2]
[398927252,1766001039612,-150.0,0.00015493,2]
[398927254,1766001039623,-150.0,0.00015495,2]
[398927256,1766001039632,-150.0,0.00015497,2]
[398927258,1766001039641,-15279.25711799,0.00015507,2]
[398927260,1766001039650,-150.0,0.00015509,2]
[398927262,1766001039659,-150.0,0.00015514,2]
[398927264,1766001039668,-150.0,0.00015516,2]
[398927266,1766001039677,-150.0,0.00015522,2]
[398927268,1766001039686,-150.0,0.00015523,2]
[398927270,1766001039695,-150.0,0.00015525,2]
[398927272,1766001039704,-150.0,0.0001553,2]
[398927274,1766001039713,-150.0,0.0001553,2]
[398927277,1766001039722,-150.0,0.00015536,2]
[398927279,1766001039731,-500.0,0.00015542,2]
[398927281,1766001039741,-150.0,0.00015542,2]
[398927283,1766001039750,-150.0,0.00015546,2]
[398927285,1766001039759,-150.0,0.00015549,2]
[398927287,1766001039768,-150.0,0.00015549,2]
[398927290,1766001039779,-150.0,0.00015551,2]
[398927292,1766001039787,-150.0,0.00015552,2]
[398927294,1766001039796,-150.0,0.00015557,2]
[398927296,1766001039806,-150.0,0.00015564,2]
[398927298,1766001039815,-393.52233492,0.00015564,2]
[398927300,1766001039825,-649.79191981,0.00015564,2]
[398927302,1766001039833,-150.0,0.00015571,2]
[398927304,1766001039843,-150.0,0.00015571,2]
[398927306,1766001039852,-150.0,0.00015575,2]
[398927308,1766001039860,-150.0,0.00015578,2]
[398927310,1766001039871,-150.0,0.00015579,2]
[398927312,1766001039880,-150.0,0.00015581,2]
[398927314,1766001039889,-150.0,0.00015583,2]
[398927316,1766001039898,-150.0,0.0001559,2]
[398927318,1766001039907,-150.0,0.00015598,2]
[398927320,1766001039916,-150.0,0.00015601,2]
[398927322,1766001039925,-150.0,0.00015604,2]
[398927324,1766001039936,-150.0,0.0001561,2]
[398927326,1766001039946,-150.0,0.00015619,2]
[398927328,1766001039957,-150.0,0.0001562,2]
[398927330,1766001039966,-150.0,0.00015627,2]
[398927332,1766001039975,-150.0,0.00015627,2]
[398927334,1766001039984,-150.0,0.00015627,2]
[398927336,1766001039993,-150.0,0.00015627,2]
[398927338,1766001040002,-150.0,0.00015639,2]
[398927340,1766001040011,-150.0,0.0001564,2]
[398927341,1766001040020,-150.0,0.00015643,2]
[398927343,1766001040031,-150.0,0.00015652,2]
[398927345,1766001040040,-150.0,0.00015654,2]
[398927347,1766001040051,-150.0,0.00015657,2]
[398927349,1766001040062,-150.0,0.00015661,2]
[398927351,1766001040071,-150.0,0.00015665,2]
[398927353,1766001040080,-150.0,0.00015668,2]
[398927355,1766001040090,-150.0,0.00015676,2]
[398927357,1766001040101,-150.0,0.0001568,2]
[398927358,1766001040110,-150.0,0.0001568,2]
[398927360,1766001040120,-150.0,0.00015681,2]
[398927362,1766001040132,-150.0,0.00015683,2]
[398927365,1766001040143,-159.0,0.00015685,2]
[398927366,1766001040152,-277.89,0.00015689,2]
[398927368,1766001040161,-150.0,0.00015694,2]
[398927370,1766001040170,-150.0,0.00015698,2]
[398927372,1766001040179,-150.0,0.00015702,2]
[398927374,1766001040189,-150.0,0.00015703,2]
[398927376,1766001040198,-150.0,0.00015706,2]
[398927378,1766001040207,-500.0,0.00015712,2]
[398927380,1766001040216,-500.0,0.00015712,2]
[398927382,1766001040225,-500.0,0.00015712,2]
[398927384,1766001040235,-500.0,0.00015712,2]
[398927386,1766001040245,-150.0,0.00015712,2]
[398927388,1766001040254,-150.0,0.00015712,2]
[398927390,1766001040263,-150.0,0.00015722,2]
[398927392,1766001040272,-150.0,0.00015723,2]
[398927394,1766001040282,-150.0,0.00015724,2]
[398927396,1766001040291,-150.0,0.00015727,2]
[398927398,1766001040300,-150.0,0.00015731,2]
[398927400,1766001040309,-150.0,0.00015732,2]
[398927402,1766001040318,-150.0,0.00015741,2]
[398927404,1766001040327,-150.0,0.00015743,2]
[398927406,1766001040336,-150.0,0.00015756,2]
[398927409,1766001040345,-150.0,0.00015758,2]
[398927411,1766001040354,-153.98,0.0001576,2]
[398927413,1766001040363,-150.0,0.00015762,2]
[398927415,1766001040372,-150.0,0.00015764,2]
[398927417,1766001040381,-150.0,0.00015768,2]
[398927419,1766001040391,-150.0,0.00015773,2]
[398927421,1766001040400,-150.0,0.00015773,2]
[398927423,1766001040409,-150.0,0.00015778,2]
[398927425,1766001040418,-250.0,0.0001578,2]
[398927427,1766001040428,-150.0,0.00015784,2]
[398927429,1766001040437,-150.0,0.00015785,2]
[398927431,1766001040446,-150.0,0.00015786,2]
[398927433,1766001040455,-15279.25711799,0.00015786,2]
[398927435,1766001040465,-360.17,0.00015796,2]
[398927437,1766001040474,-150.0,0.00015797,2]
[398927439,1766001040483,-150.0,0.00015801,2]
[398927441,1766001040492,-150.0,0.00015805,2]
[398927443,1766001040501,-150.0,0.00015806,2]
[398927445,1766001040511,-150.0,0.0001581,2]
[398927447,1766001040520,-150.0,0.0001581,2]
[398927449,1766001040529,-150.0,0.00015815,2]
[398927451,1766001040539,-150.0,0.00015816,2]
[398927453,1766001040549,-150.0,0.00015822,2]
[398927455,1766001040558,-150.0,0.00015826,2]
[398927457,1766001040567,-150.0,0.00015836,2]
[398927459,1766001040576,-150.0,0.00015841,2]
[398927461,1766001040586,-150.0,0.00015842,2]
[398927463,1766001040595,-150.0,0.00015844,2]
[398927465,1766001040604,-150.0,0.00015847,2]
[398927467,1766001040614,-150.0,0.00015854,2]
[398927469,1766001040624,-150.0,0.00015854,2]
[398927471,1766001040634,-150.0,0.00015854,2]
[398927473,1766001040643,-150.0,0.00015854,2]
[398927475,1766001040652,-150.0,0.00015863,2]
[398927477,1766001040661,-150.0,0.00015868,2]
[398927479,1766001040670,-150.0,0.0001587,2]
[398927481,1766001040679,-150.0,0.00015873,2]
[398927483,1766001040688,-150.0,0.00015878,2]
[398927485,1766001040697,-150.0,0.0001588,2]
[398927487,1766001040707,-277.89,0.00015882,2]
[398927489,1766001040715,-150.0,0.00015882,2]
[398927491,1766001040725,-150.0,0.00015888,2]
[398927493,1766001040734,-150.0,0.00015889,2]
[398927495,1766001040744,-150.0,0.00015892,2]
[398927497,1766001040753,-150.0,0.00015894,2]
[398927499,1766001040762,-1117.9697187,0.00015899,2]
[398927501,1766001040771,-402.88001739,0.000159,2]
[398927503,1766001040780,-150.0,0.00015903,2]
[398927505,1766001040789,-150.0,0.00015909,2]
[398927507,1766001040798,-150.0,0.00015915,2]
[398927509,1766001040807,-150.0,0.00015915,2]
[398927511,1766001040816,-150.0,0.00015919,2]
[398927513,1766001040825,-150.0,0.0001592,2]
[398927515,1766001040834,-150.0,0.00015929,2]
[398927517,1766001040845,-150.0,0.0001593,2]
[398927519,1766001040854,-150.0,0.00015932,2]
[398927521,1766001040863,-150.0,0.00015941,2]
[398927523,1766001040874,-150.0,0.00015941,2]
[398927525,1766001040883,-150.0,0.00015951,2]
[398927527,1766001040892,-150.0,0.00015952,2]
[398927529,1766001040901,-150.0,0.00015959,2]
[398927531,1766001040910,-150.0,0.00015961,2]
[398927533,1766001040919,-150.0,0.00015967,2]
[398927535,1766001040928,-150.0,0.00015967,2]
[398927537,1766001040937,-150.0,0.00015967,2]
[398927539,1766001040946,-150.0,0.00015967,2]
[398927541,1766001040955,-150.0,0.00015971,2]
[398927543,1766001040964,-150.0,0.00015989,2]
[398927545,1766001040973,-150.0,0.00015991,2]
[398927547,1766001040981,-150.0,0.00015992,2]
[398927549,1766001040990,-150.0,0.00015993,2]
[398927551,1766001040999,-150.0,0.00015995,2]
[398927553,1766001041008,-150.0,0.00015999,2]
[398927555,1766001041018,-930.24,0.00015999,2]
[398927557,1766001041027,-300.61,0.00015999,2]
[398927558,1766001041038,-504.89372768,0.00015999,2]
[398927560,1766001041054,-500.0,0.00015999,2]
[398927563,1766001041064,-150.0,0.00016005,2]
[398927565,1766001041074,-150.0,0.00016013,2]
[398927567,1766001041083,-150.0,0.00016016,2]
[398927569,1766001041092,-150.0,0.00016016,2]
[398927571,1766001041102,-150.0,0.00016019,2]
[398927573,1766001041111,-150.0,0.0001602,2]
[398927575,1766001041119,-1000.0,0.00016021,2]
[398927576,1766001041129,-1000.0,0.00016021,2]
[398927578,1766001041138,-1000.0,0.00016021,2]
[398927580,1766001041148,-669.93256308,0.00016021,2]
[398927582,1766001041157,-1000.0,0.00016021,2]
[398927584,1766001041167,-1000.0,0.00016021,2]
[398927586,1766001041176,-1000.0,0.00016021,2]
[398927588,1766001041186,-1000.0,0.00016021,2]
[398927591,1766001041196,-1000.0,0.00016021,2]
[398927593,1766001041206,-1000.0,0.00016021,2]
[398927595,1766001041215,-1000.0,0.00016021,2]
[398927597,1766001041224,-1000.0,0.00016021,2]
[398927599,1766001041233,-1000.0,0.00016021,2]
[398927601,1766001041243,-1000.0,0.00016021,2]
[398927603,1766001041252,-1000.0,0.00016021,2]
[398927605,1766001041261,-1000.0,0.00016021,2]
[398927607,1766001041270,-150.0,0.00016026,2]
[398927609,1766001041279,-150.0,0.00016033,2]
[398927611,1766001041288,-150.0,0.00016038,2]
[398927644,1766001041563,-1117.96971866,0.00016042,2]
[398927647,1766001041604,-150.0,0.00016043,2]
[398927649,1766001041613,-150.0,0.00016046,2]
[398927651,1766001041623,-150.0,0.00016049,2]
[398927653,1766001041632,-150.0,0.00016052,2]
[398927655,1766001041643,-150.0,0.00016054,2]
[398927657,1766001041652,-150.0,0.00016063,2]
[398927659,1766001041661,-150.0,0.00016064,2]
[398927661,1766001041670,-160.77899003,0.00016064,2]
[398927663,1766001041679,-15279.25711799,0.00016064,2]
[398927665,1766001041688,-287.0,0.0001607,2]
[398927667,1766001041697,-150.0,0.00016072,2]
[398927668,1766001041706,-150.0,0.00016072,2]
[398927669,1766001041716,-150.0,0.00016075,2]
[398927670,1766001041724,-150.0,0.00016078,2]
[398927671,1766001041733,-150.0,0.00016078,2]
[398927672,1766001041742,-150.0,0.0001608,2]
[398927673,1766001041752,-150.0,0.00016096,2]
[398927674,1766001041761,-150.0,0.00016098,2]
[398927675,1766001041770,-150.0,0.000161,2]
[398927676,1766001041779,-150.0,0.00016108,2]
[398927677,1766001041788,-150.0,0.00016113,2]
[398927678,1766001041797,-185.26,0.00016115,2]
[398927680,1766001041806,-150.0,0.00016116,2]
[398927682,1766001041816,-150.0,0.00016117,2]
[398927684,1766001041835,-150.0,0.00016118,2]
[398927686,1766001041846,-150.0,0.00016124,2]
[398927687,1766001041855,-150.0,0.00016137,2]
[398927690,1766001041865,-150.0,0.00016137,2]
[398927692,1766001041874,-150.0,0.00016137,2]
[398927694,1766001041883,-150.0,0.00016137,2]
[398927696,1766001041893,-150.0,0.00016137,2]
[398927698,1766001041902,-150.0,0.00016137,2]
[398927700,1766001041912,-150.0,0.00016137,2]
[398927702,1766001041921,-150.0,0.00016137,2]
[398927704,1766001041930,-150.0,0.0001615,2]
[398927706,1766001041940,-185.25496346,0.00016155,2]
[398927708,1766001041949,-150.0,0.00016156,2]
[398927710,1766001041959,-150.0,0.00016157,2]
[398927712,1766001041968,-150.0,0.00016158,2]
[398927714,1766001041977,-150.0,0.00016161,2]
[398927716,1766001041986,-150.0,0.00016166,2]
[398927718,1766001041995,-150.0,0.00016174,2]
[398927720,1766001042006,-150.0,0.00016176,2]
[398927722,1766001042015,-150.0,0.00016178,2]
[398927724,1766001042024,-671.0,0.00016179,2]
[398927726,1766001042034,-1117.96971866,0.00016185,2]
[398927728,1766001042043,-150.0,0.00016194,2]
[398927730,1766001042052,-150.0,0.00016196,2]
[398927732,1766001042064,-150.0,0.00016196,2]
[398927735,1766001042074,-150.0,0.00016199,2]
[398927737,1766001042084,-150.0,0.00016202,2]
[398927739,1766001042094,-150.0,0.00016202,2]
[398927741,1766001042103,-150.0,0.0001621,2]
[398927743,1766001042112,-150.0,0.00016211,2]
[398927745,1766001042121,-150.0,0.0001622,2]
[398927747,1766001042130,-150.0,0.00016222,2]
[398927749,1766001042140,-150.0,0.00016225,2]
[398927751,1766001042150,-150.0,0.00016228,2]
[398927753,1766001042159,-150.0,0.00016231,2]
[398927755,1766001042168,-150.0,0.00016236,2]
[398927757,1766001042178,-150.0,0.00016241,2]
[398927759,1766001042187,-150.0,0.00016248,2]
[398927761,1766001042197,-150.0,0.00016254,2]
[398927763,1766001042206,-150.0,0.00016255,2]
[398927765,1766001042215,-150.0,0.00016258,2]
[398927767,1766001042224,-150.0,0.00016258,2]
[398927769,1766001042233,-150.0,0.00016261,2]
[398927771,1766001042242,-150.0,0.00016269,2]
[398927773,1766001042251,-150.0,0.00016275,2]
[398927775,1766001042262,-150.0,0.00016279,2]
[398927777,1766001042271,-150.0,0.00016281,2]
[398927779,1766001042280,-150.0,0.00016282,2]
[398927781,1766001042289,-150.0,0.00016283,2]
[398927783,1766001042298,-150.0,0.00016285,2]
[398927784,1766001042308,-150.0,0.00016303,2]
[398927786,1766001042317,-150.0,0.00016307,2]
[398927788,1766001042327,-150.0,0.00016307,2]
[398927790,1766001042336,-150.0,0.00016307,2]
[398927792,1766001042346,-150.0,0.00016307,2]
[398927794,1766001042355,-150.0,0.00016313,2]
[398927796,1766001042364,-150.0,0.00016315,2]
[398927799,1766001042375,-150.0,0.00016322,2]
[398927801,1766001042384,-150.0,0.00016323,2]
[398927803,1766001042393,-1117.96971866,0.00016328,2]
[398927805,1766001042403,-150.0,0.00016333,2]
[398927807,1766001042412,-150.0,0.00016333,2]
[398927809,1766001042421,-150.0,0.00016342,2]
[398927811,1766001042430,-15279.25711799,0.00016343,2]
[398927813,1766001042439,-150.0,0.00016344,2]
[398927815,1766001042449,-150.0,0.00016345,2]
[398927817,1766001042458,-150.0,0.00016354,2]
[398927819,1766001042468,-150.0,0.00016355,2]
[398927821,1766001042478,-150.0,0.00016359,2]
[398927823,1766001042487,-150.0,0.00016359,2]
[398927825,1766001042496,-150.0,0.00016365,2]
[398927827,1766001042506,-150.0,0.00016371,2]
[398927829,1766001042515,-150.0,0.0001638,2]
[398927831,1766001042524,-150.0,0.00016382,2]
[398927833,1766001042534,-150.0,0.00016385,2]
[398927835,1766001042544,-150.0,0.00016386,2]
[398927837,1766001042553,-150.0,0.00016392,2]
[398927839,1766001042563,-150.0,0.00016394,2]
[398927841,1766001042573,-150.0,0.00016395,2]
[398927843,1766001042582,-150.0,0.00016401,2]
[398927845,1766001042591,-150.0,0.00016404,2]
[398927847,1766001042601,-150.0,0.00016406,2]
[398927850,1766001042611,-150.0,0.00016411,2]
[398927852,1766001042621,-150.0,0.0001642,2]
[398927855,1766001042631,-150.0,0.0001642,2]
[398927857,1766001042640,-150.0,0.0001642,2]
[398927859,1766001042649,-150.0,0.0001642,2]
[398927861,1766001042659,-150.0,0.00016427,2]
[398927863,1766001042668,-150.0,0.0001643,2]
[398927865,1766001042677,-150.0,0.00016432,2]
[398927867,1766001042687,-150.0,0.00016433,2]
[398927869,1766001042696,-500.0,0.00016437,2]
[398927872,1766001042705,-150.0,0.00016438,2]
[398927875,1766001042714,-720.57664757,0.00016438,2]
[398927877,1766001042724,-720.57664757,0.00016438,2]
[398927879,1766001042734,-720.57664757,0.00016438,2]
[398927881,1766001042744,-720.57664757,0.00016438,2]
[398927883,1766001042753,-720.57664757,0.00016438,2]
[398927885,1766001042763,-720.57664757,0.00016438,2]
[398927887,1766001042774,-720.57664757,0.00016438,2]
[398927890,1766001042784,-720.57664757,0.00016438,2]
[398927893,1766001042793,-720.57664757,0.00016438,2]
[398927896,1766001042803,-720.57664757,0.00016438,2]
[398927899,1766001042812,-720.57664757,0.00016438,2]
[398927902,1766001042822,-720.57664757,0.00016438,2]
[398927905,1766001042831,-720.57664757,0.00016438,2]
[398927907,1766001042841,-720.57664757,0.00016438,2]
[398927909,1766001042850,-720.57664757,0.00016438,2]
[398927911,1766001042859,-720.57664757,0.00016438,2]
[398927913,1766001042869,-720.57664757,0.00016438,2]
[398927915,1766001042879,-720.57664757,0.00016438,2]
[398927917,1766001042888,-720.57664757,0.00016438,2]
[398927919,1766001042898,-720.57664757,0.00016438,2]
[398927920,1766001042907,-720.57664757,0.00016438,2]
[398927922,1766001042916,-720.57664757,0.00016438,2]
[398927924,1766001042925,-720.57664757,0.00016438,2]
[398927925,1766001042934,-720.57664757,0.00016438,2]
[398927926,1766001042944,-720.57664757,0.00016438,2]
[398927927,1766001042953,-720.57664757,0.00016438,2]
[398927928,1766001042962,-720.57664757,0.00016438,2]
[398927929,1766001042972,-720.57664757,0.00016438,2]
[398927930,1766001042981,-720.57664757,0.00016438,2]
[398927931,1766001042991,-720.57664757,0.00016438,2]
[398927932,1766001043000,-720.57664757,0.00016438,2]
[398927933,1766001043010,-720.57664757,0.00016438,2]
[398927934,1766001043019,-720.57664757,0.00016438,2]
[398927935,1766001043028,-720.57664757,0.00016438,2]
[398927936,1766001043038,-720.57664757,0.00016438,2]
[398927937,1766001043048,-720.57664757,0.00016438,2]
[398927938,1766001043061,-720.57664757,0.00016438,2]
[398927939,1766001043070,-720.57664757,0.00016438,2]
[398927940,1766001043080,-720.57664757,0.00016438,2]
[398927941,1766001043089,-720.57664757,0.00016438,2]
[398927942,1766001043101,-720.57664757,0.00016438,2]
[398927943,1766001043110,-720.57664757,0.00016438,2]
[398927944,1766001043121,-720.57664757,0.00016438,2]
[398927945,1766001043131,-720.57664757,0.00016438,2]
[398927946,1766001043141,-720.57664757,0.00016438,2]
[398927947,1766001043150,-720.57664757,0.00016438,2]
[398927948,1766001043160,-720.57664757,0.00016438,2]
[398927949,1766001043170,-720.57664757,0.00016438,2]
[398927950,1766001043180,-720.57664757,0.00016438,2]
[398927951,1766001043190,-720.57664757,0.00016438,2]
[398927952,1766001043200,-720.57664757,0.00016438,2]
[398927953,1766001043209,-720.57664757,0.00016438,2]
[398927954,1766001043219,-720.57664757,0.00016438,2]
[398927955,1766001043229,-720.57664757,0.00016438,2]
[398927957,1766001043238,-720.57664757,0.00016438,2]
[398927958,1766001043248,-720.57664757,0.00016438,2]
[398927959,1766001043257,-720.57664757,0.00016438,2]
[398927960,1766001043267,-720.57664757,0.00016438,2]
[398927962,1766001043277,-720.57664757,0.00016438,2]
[398927964,1766001043286,-720.57664757,0.00016438,2]
[398927967,1766001043295,-720.57664757,0.00016438,2]
[398927969,1766001043304,-720.57664757,0.00016438,2]
[398927971,1766001043313,-720.57664757,0.00016438,2]
[398927973,1766001043323,-720.57664757,0.00016438,2]
[398927974,1766001043332,-720.57664757,0.00016438,2]
[398927975,1766001043341,-720.57664757,0.00016438,2]
[398927976,1766001043350,-707.47525397,0.00016438,2]
[398927977,1766001043360,-707.47525397,0.00016438,2]
[398927979,1766001043369,-707.47525397,0.00016438,2]
[398927980,1766001043382,-707.47525397,0.00016438,2]
[398927981,1766001043391,-707.47525397,0.00016438,2]
[398927982,1766001043401,-707.47525397,0.00016438,2]
[398927983,1766001043410,-707.47525397,0.00016438,2]
[398927984,1766001043419,-707.47525397,0.00016438,2]
[398927985,1766001043429,-707.47525397,0.00016438,2]
[398927986,1766001043438,-707.47525397,0.00016438,2]
[398927987,1766001043447,-707.47525397,0.00016438,2]
[398927988,1766001043456,-707.47525397,0.00016438,2]
[398927989,1766001043465,-707.47525397,0.00016438,2]
[398927990,1766001043475,-707.47525397,0.00016438,2]
[398927991,1766001043485,-707.47525397,0.00016438,2]
[398927992,1766001043495,-707.47525397,0.00016438,2]
[398927993,1766001043504,-707.47525397,0.00016438,2]
[398927994,1766001043513,-707.47525397,0.00016438,2]
[398927995,1766001043522,-707.47525397,0.00016438,2]
[398927996,1766001043532,-707.47525397,0.00016438,2]
[398927997,1766001043542,-707.47525397,0.00016438,2]
[398927998,1766001043553,-707.47525397,0.00016438,2]
[398927999,1766001043562,-300.0,0.00016438,2]
[398928000,1766001043571,-300.0,0.00016438,2]
[398928001,1766001043580,-300.0,0.00016438,2]
[398928002,1766001043589,-300.0,0.00016438,2]
[398928003,1766001043599,-300.0,0.00016438,2]
[398928004,1766001043608,-300.0,0.00016438,2]
[398928005,1766001043617,-300.0,0.00016438,2]
[398928006,1766001043629,-300.0,0.00016438,2]
[398928007,1766001043638,-300.0,0.00016438,2]
[398928008,1766001043647,-300.0,0.00016438,2]
[398928009,1766001043656,-300.0,0.00016438,2]
[398928010,1766001043665,-300.0,0.00016438,2]
[398928011,1766001043675,-386.84,0.00016438,2]
[398928012,1766001043685,-225.73,0.00016438,2]
[398928013,1766001043694,-800.0,0.00016438,2]
[398928014,1766001043705,-150.0,0.00016448,2]
[398928015,1766001043715,-150.0,0.00016452,2]
[398928016,1766001043724,-150.0,0.00016458,2]
[398928017,1766001043733,-150.0,0.00016459,2]
[398928018,1766001043743,-150.0,0.00016464,2]
[398928019,1766001043752,-150.0,0.00016464,2]
[398928020,1766001043761,-150.0,0.00016468,2]
[398928021,1766001043770,-150.0,0.00016469,2]
[398928022,1766001043780,-1117.96971866,0.00016471,2]
[398928023,1766001043790,-150.0,0.00016473,2]
[398928024,1766001043800,-150.0,0.00016477,2]
[398928025,1766001043810,-150.0,0.00016488,2]
[398928026,1766001043819,-150.0,0.00016489,2]
[398928027,1766001043828,-150.0,0.0001649,2]
[398928028,1766001043964,-150.0,0.00016496,2]
[398928029,1766001043973,-150.0,0.00016501,2]
[398928030,1766001043985,-150.0,0.00016501,2]
[398928031,1766001043995,-150.0,0.00016506,2]
[398928032,1766001044005,-150.0,0.0001651,2]
[398928033,1766001044015,-150.0,0.00016512,2]
[398928034,1766001044027,-150.0,0.00016516,2]
[398928035,1766001044039,-150.0,0.00016518,2]
[398928036,1766001044049,-500.0,0.00016521,2]
[398928037,1766001044062,-150.0,0.00016531,2]
[398928038,1766001044071,-150.0,0.00016533,2]
[398928039,1766001044081,-150.0,0.00016542,2]
[398928040,1766001044090,-150.0,0.00016543,2]
[398928041,1766001044101,-150.0,0.00016547,2]
[398928042,1766001044110,-153.98,0.00016548,2]
[398928043,1766001044119,-150.0,0.0001655,2]
[398928044,1766001044131,-150.0,0.00016551,2]
[398928045,1766001044140,-150.0,0.00016552,2]
[398928046,1766001044150,-709.44550938,0.00016558,2]
[398928047,1766001044160,-150.0,0.00016562,2]
[398928048,1766001044169,-150.0,0.00016562,2]
[398928049,1766001044179,-150.0,0.00016568,2]
[398928050,1766001044188,-1500.0,0.00016568,2]
[398928051,1766001044197,-211.82211152,0.00016568,2]
[398928052,1766001044206,-1570.99793084,0.00016568,2]
[398928053,1766001044217,-1500.0,0.00016568,2]
[398928054,1766001044226,-1500.0,0.00016568,2]
[398928055,1766001044236,-1500.0,0.00016568,2]
[398928056,1766001044246,-1591.38673749,0.00016568,2]
[398928057,1766001044255,-1500.0,0.00016568,2]
[398928058,1766001044265,-1005.15949954,0.00016568,2]
[398928059,1766001044274,-412.77072923,0.00016568,2]
[398928060,1766001044284,-1370.81113037,0.00016568,2]
[398928061,1766001044294,-1009.9852894,0.00016568,2]
[398928062,1766001044304,-1500.0,0.00016568,2]
[398928063,1766001044314,-1500.0,0.00016568,2]
[398928064,1766001044324,-150.0,0.00016571,2]
[398928065,1766001044333,-150.0,0.00016572,2]
[398928066,1766001044342,-150.0,0.00016576,2]
[398928067,1766001044352,-150.0,0.0001658,2]
[398928068,1766001044362,-150.0,0.00016591,2]
[398928069,1766001044371,-150.0,0.00016593,2]
[398928070,1766001044381,-150.0,0.00016594,2]
[398928071,1766001044390,-150.0,0.00016594,2]
[398928072,1766001044399,-150.0,0.00016598,2]
[398928073,1766001044408,-150.0,0.00016606,2]
[398928074,1766001044417,-150.0,0.00016609,2]
[398928075,1766001044426,-150.0,0.00016613,2]
[398928076,1766001044435,-1117.96971866,0.00016614,2]
[398928077,1766001044445,-150.0,0.00016617,2]
[398928078,1766001044454,-150.0,0.0001662,2]